bitfinex/quotes_BTCUSD_20240730
["timestamp","ask_amount","ask_price","bid_price","bid_amount"]
[1722362227729,0.303175,65969.0,65962.0,0.00127484]
[1722362227934,0.303168,65970.0,65962.0,0.00127484]
[1722362227935,0.151591,65967.0,65962.0,0.00127484]
[1722362228380,0.151588,65969.0,65963.0,0.02772524]
[1722362228592,0.1,65968.0,65964.0,0.00127484]
[1722362228800,0.1,65972.0,65964.0,0.00127484]
[1722362228801,0.1,65972.0,65964.0,0.02427484]
[1722362229008,0.1,65972.0,65965.0,0.0097319]
[1722362229218,0.1,65972.0,65966.0,0.00127484]
[1722362229463,0.25158,65972.0,65966.0,0.00127484]
[1722362229668,0.1,65972.0,65966.0,0.00127484]
[1722362230531,0.1,65972.0,65965.0,0.00127484]
[1722362230788,0.251579,65972.0,65966.0,0.001]
[1722362231007,0.403161,65972.0,65967.0,0.01236946]
[1722362231206,0.403161,65972.0,65967.0,0.00127484]
[1722362231207,0.151582,65971.0,65967.0,0.00127484]
[1722362231412,0.10027936,65970.0,65962.0,0.023]
[1722362231616,0.1,65970.0,65968.0,0.01108191]
[1722362231944,0.1,65970.0,65969.0,0.00127484]
[1722362232149,0.1,65970.0,65962.0,0.20509634]
[1722362232150,0.1,65970.0,65963.0,0.00127484]
[1722362232367,0.1,65970.0,65969.0,0.01106921]
[1722362232546,0.1,65970.0,65965.0,0.00127484]
[1722362232751,0.1,65970.0,65969.0,0.01106921]
[1722362232752,0.251584,65970.0,65969.0,0.01106921]
[1722362233007,0.1,65970.0,65968.0,0.001]
[1722362233171,0.1,65970.0,65969.0,0.00127484]
[1722362233376,0.1,65972.0,65969.0,0.00127484]
[1722362233571,0.064,65987.0,65971.0,0.0785]
[1722362233774,0.151562,65980.0,65972.0,0.01696748]
[1722362233976,0.303123,65980.0,65972.0,0.02799856]
[1722362234180,0.151573,65975.0,65972.0,0.01696748]
[1722362234380,0.1,65974.0,65973.0,0.02725513]
[1722362234874,0.251574,65974.0,65973.0,0.02725513]
[1722362235071,0.251574,65974.0,65973.0,0.01101838]
[1722362235072,0.857872,65974.0,65973.0,0.01101838]
[1722362235272,0.151586,65969.0,65968.0,0.001]
[1722362235521,0.303157,65973.0,65965.0,0.00127484]
[1722362235747,0.15158,65972.0,65968.0,0.01108191]
[1722362235996,0.303159,65972.0,65966.0,0.02963079]
[1722362236225,0.1,65974.0,65964.0,0.0659]
[1722362236475,0.1,65974.0,65959.0,0.0659]
[1722362236476,0.303173,65969.0,65959.0,0.0659]
[1722362236711,0.151593,65966.0,65959.0,0.0659]
[1722362236941,0.1516,65963.0,65960.0,0.02562359]
[1722362237155,0.151598,65964.0,65960.0,0.01444]
[1722362237369,0.151598,65964.0,65961.0,0.015884]
[1722362237576,0.151602,65962.0,65961.0,0.015884]
[1722362238368,0.151593,65966.0,65961.0,0.015884]
[1722362238616,0.151591,65967.0,65959.0,0.0659]
[1722362238817,0.151589,65968.0,65960.0,0.00127484]
[1722362239024,0.151589,65968.0,65961.0,0.01456748]
[1722362239226,0.151589,65968.0,65962.0,0.00127484]
[1722362239646,0.151575,65974.0,65962.0,0.00127484]
[1722362239859,0.00937922,65975.0,65963.0,0.15063304]
[1722362239860,0.12373721,65973.0,65963.0,0.15063304]
[1722362240068,0.02373721,65972.0,65964.0,0.02585711]
[1722362240325,0.0832,65988.0,65966.0,0.151592]
[1722362240326,0.32711978,65984.0,65966.0,0.151592]
[1722362240566,0.44444115,65977.0,65967.0,0.19448891]
[1722362240827,0.151563,65979.0,65967.0,0.20558353]
[1722362241053,0.02373444,65978.0,65968.0,0.03611819]
[1722362241289,0.151584,65970.0,65969.0,0.00127484]
[1722362241523,0.0605,65978.0,65969.0,0.01106921]
[1722362241729,0.2259802,65983.0,65968.0,0.00127484]
[1722362241730,0.151578,65973.0,65968.0,0.00127484]
[1722362241971,0.403125,65980.0,65966.0,0.00127484]
[1722362241972,0.02373692,65972.0,65966.0,0.00127484]
[1722362242192,0.151582,65971.0,65969.0,0.01106921]
[1722362242436,0.454771,65967.0,65966.0,0.00127484]
[1722362242641,0.07534716,65979.0,65960.0,0.002]
[1722362242642,0.303155,65973.0,65960.0,0.002]
[1722362242855,0.151594,65966.0,65961.0,0.01448]
[1722362243064,0.151595,65965.0,65962.0,0.002]
[1722362243272,0.10027936,65972.0,65961.0,0.02565088]
[1722362243273,0.3032,65963.0,65961.0,0.01117088]
[1722362243487,0.151605,65961.0,65959.0,0.0623]
[1722362243757,0.454821,65960.0,65959.0,0.01428]
[1722362243976,0.151607,65960.0,65954.0,0.0623]
[1722362244182,0.1516,65963.0,65954.0,0.0623]
[1722362244387,0.00027936,65962.0,65955.0,0.01428]
[1722362244825,0.30317,65970.0,65956.0,0.00127484]
[1722362245027,0.151591,65967.0,65956.0,0.01698284]
[1722362245236,0.12373865,65969.0,65957.0,0.15063304]
[1722362245237,0.00027936,65966.0,65957.0,0.15063304]
[1722362245439,0.00027936,65966.0,65958.0,0.29571475]
[1722362245645,0.00027936,65966.0,65959.0,0.12600804]
[1722362245900,0.1,65969.0,65960.0,0.02393041]
[1722362246074,0.1,65972.0,65961.0,0.03024294]
[1722362246285,0.74758015,65977.0,65964.0,0.0775]
[1722362246286,0.1,65974.0,65964.0,0.0775]
[1722362246494,0.54444115,65976.0,65965.0,0.16708732]
[1722362246699,0.1,65976.0,65966.0,0.023]
[1722362246903,0.1,65978.0,65967.0,0.19470874]
[1722362247158,0.1,65978.0,65968.0,0.023]
[1722362247159,0.02373461,65977.0,65968.0,0.023]
[1722362247366,0.08823461,65977.0,65969.0,0.00127484]
[1722362247555,0.151583,65971.0,65969.0,0.01106921]
[1722362247793,0.151583,65971.0,65968.0,0.00127484]
[1722362248001,0.02373461,65970.0,65966.0,0.002]
[1722362248664,0.12373461,65971.0,65966.0,0.002]
[1722362248873,0.02373733,65970.0,65966.0,0.002]
[1722362249080,0.1,65971.0,65967.0,0.00127484]
[1722362249249,0.1,65971.0,65968.0,0.01591448]
[1722362249835,0.105,65972.0,65966.0,0.002]
[1722362250039,0.151586,65970.0,65967.0,0.00127484]
[1722362250240,0.151589,65968.0,65965.0,0.00127484]
[1722362250540,0.17532885,65967.0,65965.0,0.00127484]
[1722362250715,0.151591,65967.0,65963.0,0.0642]
[1722362250937,0.151591,65967.0,65966.0,0.01110733]
[1722362251137,0.151591,65967.0,65964.0,0.0147]
[1722362251138,0.02373806,65967.0,65964.0,0.0147]
[1722362251564,0.1,65977.0,65965.0,0.01239488]
[1722362251765,0.02373596,65976.0,65966.0,0.03212949]
[1722362252134,0.00027936,65975.0,65967.0,0.01109462]
[1722362252334,0.02373596,65974.0,65967.0,0.01109462]
[1722362252455,0.02373596,65974.0,65968.0,0.01241241]
[1722362252655,0.02373596,65973.0,65968.0,0.01241241]
[1722362252907,0.02373596,65972.0,65968.0,0.01241241]
[1722362253118,0.02373596,65972.0,65966.0,0.023]
[1722362253119,0.07534716,65971.0,65965.0,0.002]
[1722362253315,0.07534716,65971.0,65955.0,0.000913]
[1722362253316,0.151616,65956.0,65955.0,0.000913]
[1722362253522,0.54408396,65956.0,65955.0,0.000913]
[1722362253758,0.95669653,65956.0,65955.0,0.000913]
[1722362254158,1.25992853,65956.0,65955.0,0.000913]
[1722362254363,0.95669653,65956.0,65955.0,0.000913]
[1722362254983,1.54107122,65956.0,65955.0,0.001913]
[1722362255196,1.71087122,65956.0,65955.0,0.001913]
[1722362255409,1.71087122,65956.0,65934.0,0.00127484]
[1722362255410,0.758322,65935.0,65934.0,0.00127484]
[1722362255818,0.758322,65935.0,65931.0,0.00853]
[1722362255819,0.455013,65932.0,65931.0,0.00853]
[1722362256032,0.758355,65932.0,65931.0,0.00853]
[1722362256243,1.0854489,65932.0,65931.0,0.00853]
[1722362256440,1.33608194,65932.0,65931.0,0.00853]
[1722362257069,1.36070922,65932.0,65931.0,0.00853]
[1722362257502,1.33608194,65932.0,65931.0,0.00853]
[1722362257709,1.33465394,65932.0,65931.0,0.02053]
[1722362257916,1.31090204,65932.0,65931.0,0.02053]
[1722362258132,1.33365668,65932.0,65931.0,0.00853]
[1722362258351,0.855927,65932.0,65931.0,0.00853]
[1722362258565,0.855927,65932.0,65931.0,0.00953]
[1722362258566,0.566585,65932.0,65931.0,0.00953]
[1722362259522,0.869927,65932.0,65931.0,0.00953]
[1722362259770,1.173269,65932.0,65931.0,0.00953]
[1722362259996,0.855927,65932.0,65931.0,0.00853]
[1722362260238,1.00656004,65932.0,65931.0,0.00853]
[1722362260466,1.30990204,65932.0,65931.0,0.00853]
[1722362260691,1.32390204,65932.0,65931.0,0.00953]
[1722362261391,1.30990204,65932.0,65931.0,0.00853]
[1722362261593,1.31790204,65932.0,65931.0,0.00953]
[1722362263072,1.30990204,65932.0,65931.0,0.00853]
[1722362263689,1.32290204,65932.0,65931.0,0.00953]
[1722362263911,1.32290204,65932.0,65931.0,0.00853]
[1722362264424,1.33090204,65932.0,65931.0,0.00953]
[1722362264633,0.876927,65932.0,65931.0,0.00953]
[1722362264842,0.272671,65932.0,65931.0,0.00953]
[1722362265046,0.576013,65932.0,65931.0,0.00953]
[1722362265254,0.272671,65932.0,65931.0,0.00953]
[1722362265662,0.121,65932.0,65931.0,0.00953]
[1722362265872,0.121,65932.0,65931.0,0.01723158]
[1722362266097,0.121,65932.0,65931.0,0.04076652]
[1722362266098,0.021,65932.0,65931.0,0.04076652]
[1722362266298,0.021,65932.0,65931.0,0.0484681]
[1722362266754,0.151657,65938.0,65931.0,0.0474681]
[1722362266962,0.44444115,65943.0,65931.0,0.0474681]
[1722362266963,0.151656,65939.0,65932.0,0.03395681]
[1722362267424,0.63921229,65944.0,65932.0,0.03395681]
[1722362267632,0.4782,65944.0,65933.0,0.32159288]
[1722362267837,0.4782,65944.0,65934.0,0.023]
[1722362268045,0.4707459,65944.0,65936.0,0.303324]
[1722362268257,0.4707459,65944.0,65937.0,0.17666586]
[1722362268462,0.46704199,65944.0,65937.0,0.18814191]
[1722362268909,0.46704199,65944.0,65937.0,0.18510909]
[1722362269132,0.46325955,65944.0,65937.0,0.18510909]
[1722362269277,0.46325955,65944.0,65938.0,0.03274091]
[1722362269488,0.46325955,65944.0,65939.0,0.023]
[1722362269686,0.46325955,65944.0,65939.0,0.03445061]
[1722362270893,0.41242034,65953.0,65939.0,0.03645061]
[1722362270894,0.151632,65949.0,65939.0,0.03645061]
[1722362271097,0.1,65948.0,65940.0,0.02295831]
[1722362271298,0.251634,65948.0,65940.0,0.02295831]
[1722362271502,0.251634,65948.0,65941.0,0.01142517]
[1722362271503,0.15164,65946.0,65941.0,0.01142517]
[1722362271956,0.151642,65945.0,65941.0,0.01142517]
[1722362272195,0.151646,65943.0,65942.0,0.02100165]
[1722362272402,0.454944,65942.0,65941.0,0.01142517]
[1722362272608,0.151642,65945.0,65939.0,0.002]
[1722362272814,0.151644,65944.0,65939.0,0.002]
[1722362273020,0.151647,65943.0,65940.0,0.01143789]
[1722362273227,0.303288,65944.0,65940.0,0.01143789]
[1722362273228,0.151644,65944.0,65940.0,0.01143789]
[1722362273647,0.303289,65944.0,65935.0,0.0628]
[1722362273860,0.303289,65944.0,65936.0,0.015083]
[1722362274034,0.151648,65942.0,65939.0,0.001]
[1722362274298,0.303274,65947.0,65936.0,0.015083]
[1722362274499,0.15164,65946.0,65937.0,0.19050952]
[1722362274719,0.251634,65948.0,65940.0,0.002]
[1722362274929,0.1,65948.0,65941.0,0.01944041]
[1722362275142,0.1,65949.0,65942.0,0.0822]
[1722362275355,0.303257,65951.0,65943.0,0.01360656]
[1722362275356,0.151635,65948.0,65943.0,0.01360656]
[1722362275567,0.1,65950.0,65944.0,0.0614]
[1722362275774,0.1,65950.0,65944.0,0.0844]
[1722362275984,0.1,65952.0,65945.0,0.02917872]
[1722362276163,0.1,65952.0,65945.0,0.02080388]
[1722362276360,0.251625,65952.0,65945.0,0.02080388]
[1722362276534,0.1,65952.0,65946.0,0.01874039]
[1722362276929,0.005,65950.0,65946.0,0.01874039]
[1722362277166,0.403252,65952.0,65946.0,0.01874039]
[1722362277398,0.251626,65952.0,65947.0,0.01853404]
[1722362277637,0.258626,65952.0,65947.0,0.01853404]
[1722362277868,0.258626,65952.0,65948.0,0.0103934]
[1722362278092,0.258626,65952.0,65949.0,0.023]
[1722362278093,0.005,65950.0,65949.0,0.023]
[1722362278313,0.005,65950.0,65949.0,0.0260323]
[1722362278526,0.005,65950.0,65949.0,0.03437323]
[1722362278733,0.005,65950.0,65949.0,0.35487805]
[1722362279156,0.005,65950.0,65949.0,0.35184575]
[1722362279578,0.151596,65965.0,65949.0,0.50347775]
[1722362279785,0.31243206,65966.0,65951.0,0.151627]
[1722362279786,0.00924506,65966.0,65951.0,0.151627]
[1722362279989,0.00924506,65966.0,65950.0,0.17956048]
[1722362279990,0.151593,65966.0,65952.0,0.17666506]
[1722362280207,0.1,65966.0,65953.0,0.02677178]
[1722362280430,0.1,65967.0,65955.0,0.064]
[1722362280652,0.1,65967.0,65956.0,0.06324103]
[1722362281160,0.1,65967.0,65956.0,0.06020904]
[1722362281386,0.10902844,65971.0,65956.0,0.21485603]
[1722362281637,0.10902844,65971.0,65958.0,0.0801]
[1722362281838,0.151584,65970.0,65958.0,0.0801]
[1722362282018,0.251586,65969.0,65959.0,0.00825618]
[1722362282196,0.1,65969.0,65958.0,0.0801]
[1722362282415,0.151591,65967.0,65959.0,0.03718362]
[1722362282752,0.1,65966.0,65959.0,0.02892744]
[1722362282952,0.1,65966.0,65960.0,0.02677178]
[1722362283659,0.1,65966.0,65961.0,0.00823923]
[1722362283891,0.1,65966.0,65960.0,0.02677178]
[1722362284095,0.151587,65969.0,65961.0,0.01329037]
[1722362284298,0.1,65968.0,65961.0,0.01329037]
[1722362284496,0.1,65968.0,65962.0,0.01241941]
[1722362284707,0.1,65968.0,65962.0,0.02065016]
[1722362284910,0.46325955,65972.0,65964.0,0.0603]
[1722362285108,0.303126,65980.0,65964.0,0.0603]
[1722362285109,0.151566,65978.0,65965.0,0.04253961]
[1722362285320,0.00027936,65977.0,65965.0,0.0530568]
[1722362285524,0.00926452,65978.0,65966.0,0.10477178]
[1722362285730,0.303116,65982.0,65966.0,0.10477178]
[1722362285935,0.151573,65975.0,65967.0,0.01049177]
[1722362286156,0.15158,65972.0,65968.0,0.02892744]
[1722362286514,0.07534716,65978.0,65969.0,0.01046636]
[1722362286515,0.1,65971.0,65969.0,0.01046636]
[1722362286714,0.1,65972.0,65969.0,0.0294891]
[1722362286919,0.1,65972.0,65970.0,0.01304891]
[1722362287121,0.151575,65974.0,65970.0,0.01304891]
[1722362287122,0.1,65973.0,65970.0,0.01304891]
[1722362287525,0.1,65974.0,65970.0,0.01304891]
[1722362287701,0.151578,65973.0,65970.0,0.01304891]
[1722362287931,0.1,65972.0,65966.0,0.078]
[1722362288105,0.151588,65969.0,65966.0,0.078]
[1722362288312,0.151586,65969.0,65966.0,0.078]
[1722362288722,0.07534716,65970.0,65964.0,0.0603]
[1722362288942,0.07534716,65970.0,65964.0,0.01428]
[1722362289173,0.151591,65967.0,65964.0,0.01428]
[1722362289384,0.454786,65965.0,65964.0,0.01428]
[1722362289589,0.757977,65965.0,65964.0,0.01428]
[1722362289793,0.303201,65963.0,65959.0,0.0621]
[1722362289996,0.151606,65961.0,65959.0,0.0621]
[1722362290249,0.0616,65969.0,65954.0,0.141]
[1722362290478,0.1,65960.0,65948.0,0.0781]
[1722362290709,0.151626,65952.0,65948.0,0.0781]
[1722362290959,0.1,65960.0,65948.0,0.0781]
[1722362290960,0.303245,65954.0,65948.0,0.0781]
[1722362291181,0.151623,65953.0,65949.0,0.0141]
[1722362291392,0.30322,65959.0,65949.0,0.0141]
[1722362291660,0.151609,65959.0,65954.0,0.001]
[1722362291866,0.1,65960.0,65954.0,0.0175733]
[1722362292069,0.251607,65960.0,65955.0,0.0106443]
[1722362292274,0.303209,65961.0,65954.0,0.0165733]
[1722362292275,0.151618,65955.0,65954.0,0.0165733]
[1722362292483,0.17534716,65962.0,65949.0,0.0141]
[1722362292694,0.151624,65953.0,65949.0,0.0141]
[1722362293114,0.15162,65955.0,65949.0,0.0141]
[1722362293326,0.151619,65955.0,65950.0,0.01611]
[1722362293743,0.15162,65954.0,65950.0,0.01611]
[1722362293938,0.15162,65954.0,65951.0,0.010021]
[1722362294172,0.303226,65958.0,65951.0,0.010021]
[1722362294375,0.10913808,65962.0,65951.0,0.010021]
[1722362294515,0.15162,65954.0,65951.0,0.010021]
[1722362294711,0.151619,65955.0,65951.0,0.010021]
[1722362294897,0.151619,65955.0,65952.0,0.0104231]
[1722362295111,0.151621,65954.0,65952.0,0.0104231]
[1722362295304,0.152621,65954.0,65952.0,0.0104231]
[1722362295624,0.15162,65954.0,65952.0,0.0104231]
[1722362295821,0.151623,65953.0,65952.0,0.0104231]
[1722362296024,0.758125,65952.0,65951.0,0.005]
[1722362297060,0.454875,65952.0,65951.0,0.005]
[1722362297265,0.151625,65952.0,65951.0,0.005]
[1722362297466,0.151625,65952.0,65943.0,0.08063258]
[1722362297467,0.15163,65950.0,65943.0,0.08063258]
[1722362297663,0.151623,65953.0,65952.0,0.006]
[1722362297812,0.001,65954.0,65952.0,0.006]
[1722362298019,0.151618,65955.0,65944.0,0.03761326]
[1722362298230,0.303228,65957.0,65944.0,0.03761326]
[1722362298231,0.001,65952.0,65951.0,0.009]
[1722362298690,0.303216,65960.0,65951.0,0.01069516]
[1722362298691,0.00937866,65958.0,65951.0,0.01069516]
[1722362298901,0.151614,65957.0,65952.0,0.063]
[1722362299184,0.001,65954.0,65952.0,0.069]
[1722362299593,0.001,65954.0,65953.0,0.01066973]
[1722362299802,0.001,65954.0,65953.0,0.0186367]
[1722362300020,0.0092652,65960.0,65953.0,0.00796697]
[1722362300227,0.1,65965.0,65954.0,0.233265]
[1722362300378,0.10917617,65965.0,65955.0,0.02049857]
[1722362300574,0.10917617,65965.0,65956.0,0.17666496]
[1722362300775,0.1,65964.0,65956.0,0.17666496]
[1722362301007,0.1,65966.0,65957.0,0.01061887]
[1722362301216,0.1,65966.0,65958.0,0.20389864]
[1722362301355,0.76640655,65975.0,65959.0,0.1426]
[1722362301555,0.76640655,65975.0,65960.0,0.17666467]
[1722362301556,0.151577,65973.0,65960.0,0.17666467]
[1722362301784,0.151577,65973.0,65961.0,0.02846554]
[1722362301785,0.151581,65971.0,65961.0,0.02846554]
[1722362301993,0.1,65970.0,65962.0,0.17363304]
[1722362302199,0.1,65970.0,65962.0,0.18418836]
[1722362302408,0.251584,65970.0,65963.0,0.02723368]
[1722362302618,0.1,65970.0,65964.0,0.0335299]
[1722362303253,0.251584,65970.0,65964.0,0.0335299]
[1722362303453,0.251584,65970.0,65965.0,0.02113966]
[1722362303657,0.251584,65970.0,65966.0,0.01050448]
[1722362303931,0.15159,65967.0,65966.0,0.01050448]
[1722362304133,0.554771,65967.0,65966.0,0.01050448]
[1722362304373,0.151596,65965.0,65959.0,0.1426]
[1722362304556,0.303191,65965.0,65960.0,0.03726]
[1722362304750,0.151599,65964.0,65960.0,0.03726]
[1722362305095,0.151594,65966.0,65960.0,0.03726]
[1722362305298,0.151594,65966.0,65963.0,0.001]
[1722362305726,0.151596,65965.0,65963.0,0.001]
[1722362305991,0.151596,65965.0,65961.0,0.017986]
[1722362306187,0.001,65964.0,65961.0,0.017986]
[1722362306391,0.001,65964.0,65962.0,0.0191586]
[1722362306567,0.151596,65965.0,65962.0,0.0191586]
[1722362306812,0.151593,65966.0,65962.0,0.0191586]
[1722362306974,0.151593,65966.0,65963.0,0.004]
[1722362307176,0.151593,65966.0,65964.0,0.01887586]
[1722362307376,0.251591,65967.0,65964.0,0.01887586]
[1722362307577,0.1,65967.0,65964.0,0.01887586]
[1722362307784,0.00027936,65980.0,65966.0,0.1417]
[1722362308119,0.151571,65976.0,65967.0,0.18715624]
[1722362308307,0.251572,65975.0,65967.0,0.18715624]
[1722362308504,0.15158,65972.0,65968.0,0.03288562]
[1722362308703,0.454758,65969.0,65968.0,0.03288562]
[1722362308902,0.1,65975.0,65951.0,0.1421]
[1722362308903,0.303181,65967.0,65951.0,0.1421]
[1722362309191,0.303181,65967.0,65953.0,0.15063304]
[1722362309383,0.303159,65972.0,65963.0,0.004]
[1722362309633,0.02373875,65971.0,65954.0,0.01065701]
[1722362309833,0.151591,65967.0,65955.0,0.20700846]
[1722362310033,0.151591,65967.0,65956.0,0.1421]
[1722362310225,0.151597,65965.0,65957.0,0.17295684]
[1722362310452,0.303179,65968.0,65957.0,0.18357571]
[1722362310453,0.303183,65967.0,65957.0,0.18357571]
[1722362310631,0.151593,65966.0,65958.0,0.05556757]
[1722362310859,0.151593,65966.0,65959.0,0.15063304]
[1722362311058,0.151593,65966.0,65960.0,0.023]
[1722362311421,0.151593,65966.0,65961.0,0.01056803]
[1722362311796,0.403155,65973.0,65962.0,0.02167686]
[1722362312015,0.02373716,65972.0,65963.0,0.16813158]
[1722362312218,0.30340136,65980.0,65963.0,0.16813158]
[1722362312219,0.32686309,65979.0,65964.0,0.15063304]
[1722362312430,0.42714533,65978.0,65965.0,0.02603134]
[1722362312738,0.02373553,65977.0,65966.0,0.1872191]
[1722362312938,0.15184536,65978.0,65967.0,0.02603134]
[1722362313145,0.251568,65977.0,65968.0,0.1858612]
[1722362313353,0.00027936,65976.0,65969.0,0.023]
[1722362313553,0.00027936,65976.0,65970.0,0.00303135]
[1722362313671,0.15185036,65976.0,65971.0,0.04171308]
[1722362313873,0.15185036,65976.0,65971.0,0.01871308]
[1722362314330,0.00027936,65976.0,65971.0,0.01871308]
[1722362314551,0.00027936,65976.0,65969.0,0.023]
[1722362314552,0.00027936,65976.0,65972.0,0.01923461]
[1722362314730,0.00027936,65976.0,65973.0,0.1421]
[1722362314954,0.00027936,65976.0,65974.0,0.023]
[1722362315255,0.004,65977.0,65975.0,0.00303108]
[1722362315388,0.004,65977.0,65976.0,0.023]
[1722362315586,0.004,65977.0,65976.0,0.03337741]
[1722362315796,0.004,65977.0,65976.0,0.18401045]
[1722362316002,0.004,65977.0,65976.0,1.1720146]
[1722362316207,0.004,65977.0,65976.0,0.93615882]
[1722362316422,0.00083,65986.0,65977.0,0.151567]
[1722362316633,0.00083,65986.0,65978.0,0.35528598]
[1722362316869,0.00083,65986.0,65978.0,0.33555004]
[1722362317553,0.00083,65986.0,65978.0,0.18398504]
[1722362317713,0.00083,65986.0,65979.0,0.03379988]
[1722362317917,0.00083,65986.0,65981.0,0.1462]
[1722362318176,0.00083,65986.0,65982.0,0.17363304]
[1722362318508,0.00083,65986.0,65983.0,0.01028849]
[1722362318823,0.00083,65986.0,65984.0,0.17363304]
[1722362319063,0.00083,65986.0,65985.0,0.02189934]
[1722362319290,0.00083,65986.0,65985.0,0.20579546]
[1722362320296,0.00183,65986.0,65985.0,0.20579546]
[1722362320525,0.00083,65986.0,65985.0,0.20579546]
[1722362321579,0.152377,65986.0,65985.0,0.03216242]
[1722362321941,0.455471,65986.0,65985.0,0.03216242]
[1722362322203,0.152377,65986.0,65985.0,0.03216242]
[1722362322437,0.152377,65986.0,65985.0,0.02189934]
[1722362322645,0.153377,65986.0,65985.0,0.03289934]
[1722362323091,0.152377,65986.0,65985.0,0.02189934]
[1722362324112,0.00083,65986.0,65985.0,0.02189934]
[1722362324273,0.00083,65986.0,65985.0,0.02389934]
[1722362325914,0.00110936,65986.0,65985.0,0.02389934]
[1722362326291,0.00083,65986.0,65985.0,0.17253238]
[1722362326496,0.00083,65986.0,65985.0,0.20579546]
[1722362326730,0.00083,65986.0,65985.0,0.03616242]
[1722362326930,0.152377,65986.0,65985.0,0.03216242]
[1722362327132,0.00083,65986.0,65985.0,0.02189934]
[1722362327344,0.00083,65986.0,65985.0,0.04489934]
[1722362327731,0.00083,65986.0,65985.0,0.05916242]
[1722362327928,0.00083,65986.0,65985.0,0.04889934]
[1722362329966,0.00083,65986.0,65985.0,0.04489934]
[1722362330119,0.00183,65986.0,65985.0,0.05289934]
[1722362330534,0.00083,65986.0,65985.0,0.04489934]
[1722362330998,0.00083,65986.0,65985.0,0.19553238]
[1722362331352,0.00083,65986.0,65985.0,0.27889546]
[1722362331585,0.00183,65986.0,65985.0,0.28192588]
[1722362332437,0.00183,65986.0,65985.0,0.27889546]
[1722362332646,0.456471,65986.0,65985.0,0.01826308]
[1722362332878,0.759565,65986.0,65985.0,0.01826308]
[1722362333126,0.303109,65983.0,65979.0,0.0651]
[1722362333350,0.15156,65981.0,65980.0,0.01443]
[1722362333568,0.151557,65982.0,65980.0,0.02475659]
[1722362333787,0.151557,65982.0,65981.0,0.00898566]
[1722362334400,0.303109,65983.0,65981.0,0.00898566]
[1722362334647,0.151554,65983.0,65981.0,0.00898566]
[1722362335111,0.00027936,65982.0,65981.0,0.00898566]
[1722362335337,0.151554,65983.0,65981.0,0.00898566]
[1722362335571,0.151556,65982.0,65980.0,0.01443]
[1722362335818,0.00027936,65981.0,65971.0,0.0659]
[1722362336045,0.151568,65977.0,65972.0,0.023]
[1722362336273,0.303131,65978.0,65972.0,0.04820823]
[1722362336274,0.15157,65976.0,65972.0,0.04820823]
[1722362336504,0.15157,65976.0,65973.0,0.03466413]
[1722362336735,0.30313,65979.0,65974.0,0.023]
[1722362336975,0.00027936,65976.0,65974.0,0.03340282]
[1722362337194,0.15184936,65976.0,65975.0,0.02103509]
[1722362337458,0.15184936,65976.0,65974.0,0.03340282]
[1722362337459,0.757862,65975.0,65974.0,0.01040282]
[1722362337687,0.151584,65970.0,65965.0,0.0659]
[1722362337922,0.151574,65974.0,65973.0,0.012]
[1722362338150,0.00027936,65976.0,65967.0,0.00303149]
[1722362338375,0.001,65976.0,65975.0,0.012]
[1722362338562,0.455712,65976.0,65975.0,0.012]
[1722362339043,1.127096,65976.0,65975.0,0.012]
[1722362339493,1.205496,65976.0,65975.0,0.012]
[1722362339700,1.32923323,65976.0,65975.0,0.012]
[1722362339938,0.26723723,65976.0,65958.0,0.0643]
[1722362340139,0.26723723,65976.0,65959.0,0.01471]
[1722362340140,0.151601,65963.0,65959.0,0.01471]
[1722362340339,0.151598,65964.0,65959.0,0.01471]
[1722362340542,0.001,65970.0,65959.0,0.01471]
[1722362340742,0.001,65970.0,65952.0,0.0648]
[1722362340743,0.0631,65969.0,65952.0,0.0648]
[1722362340956,0.103641,65968.0,65952.0,0.0648]
[1722362341161,0.151623,65953.0,65952.0,0.01409]
[1722362341363,0.151627,65951.0,65946.0,0.0648]
[1722362341510,0.303217,65960.0,65947.0,0.15063304]
[1722362341714,0.303238,65955.0,65948.0,0.0292446]
[1722362341918,0.151632,65949.0,65948.0,0.0292446]
[1722362342142,0.151632,65949.0,65944.0,0.000913]
[1722362342143,0.0799,65953.0,65944.0,0.000913]
[1722362342327,0.151638,65947.0,65944.0,0.000913]
[1722362342527,0.0799,65960.0,65944.0,0.0150943]
[1722362342732,0.15163,65950.0,65944.0,0.0150943]
[1722362342928,0.151632,65949.0,65944.0,0.0150943]
[1722362343129,0.303251,65952.0,65944.0,0.0150943]
[1722362343360,0.151635,65948.0,65945.0,0.00798943]
[1722362343583,0.462968,65970.0,65945.0,0.00798943]
[1722362343584,0.54315955,65965.0,65946.0,0.1536657]
[1722362343785,0.1,65964.0,65947.0,0.1409]
[1722362343986,0.07239186,65963.0,65948.0,0.05652849]
[1722362344189,0.151625,65952.0,65948.0,0.06726179]
[1722362344605,0.151624,65953.0,65948.0,0.06726179]
[1722362344858,0.151624,65953.0,65949.0,0.02217073]
[1722362345034,0.303234,65956.0,65950.0,0.023]
[1722362345035,0.151621,65954.0,65950.0,0.023]
[1722362345288,0.151621,65954.0,65951.0,0.03352849]
[1722362345498,0.151618,65955.0,65951.0,0.03352849]
[1722362345710,0.303219,65959.0,65951.0,0.03352849]
[1722362345926,0.251612,65958.0,65951.0,0.03352849]
[1722362346141,0.251612,65958.0,65952.0,0.02217073]
[1722362346142,0.1,65958.0,65952.0,0.02217073]
[1722362346353,0.15162,65955.0,65952.0,0.02217073]
[1722362346578,0.1,65958.0,65952.0,0.17280377]
[1722362346782,0.00929186,65963.0,65952.0,0.17280377]
[1722362346783,0.00929186,65963.0,65953.0,0.17666517]
[1722362346988,0.151606,65961.0,65953.0,0.18430277]
[1722362347286,0.001,65958.0,65953.0,0.01066973]
[1722362347532,0.151617,65956.0,65947.0,0.1409]
[1722362347750,0.151617,65956.0,65948.0,0.18781434]